fUST/lending_fUST_20260114
["ID","MTS","AMOUNT","RATE_DAILY","PERIOD"]
[401853541,1768387843911,-2500.0,0.00015464,2]
[401853542,1768387843920,-2500.0,0.00015464,2]
[401853544,1768387843929,-2500.0,0.00015464,2]
[401853546,1768387843938,-2500.0,0.00015464,2]
[401853548,1768387843947,-2500.0,0.00015464,2]
[401853551,1768387843957,-2500.0,0.00015464,2]
[401853553,1768387843966,-2500.0,0.00015464,2]
[401853555,1768387843976,-2500.0,0.00015464,2]
[401853556,1768387843985,-2500.0,0.00015464,2]
[401853558,1768387843993,-19805.93410511,0.00015807,2]
[401853560,1768387844003,-1500.0,0.00015864,2]
[401853562,1768387844012,-2500.0,0.0001589,2]
[401853564,1768387844021,-1211.66599686,0.0001589,2]
[401853566,1768387844030,-2500.0,0.0001589,2]
[401853569,1768387844043,-2500.0,0.0001589,2]
[401853572,1768387844065,-2500.0,0.0001589,2]
[401853575,1768387844083,-2500.0,0.0001589,2]
[401853578,1768387844103,-380.12579905,0.0001589,2]
[401853582,1768387844124,-2500.0,0.0001589,2]
[401853584,1768387844141,-1000.0,0.00016,2]
[401853587,1768387844160,-3000.0,0.00016012,2]
[401853590,1768387844176,-3000.0,0.00016012,2]
[401853593,1768387844191,-3000.0,0.00016012,2]
[401853595,1768387844209,-1671.14126243,0.00016012,2]
[401853599,1768387844231,-3000.0,0.00016012,2]
[401853601,1768387844245,-371.52284537,0.00016012,2]
[401853604,1768387844260,-3000.0,0.00016012,2]
[401853607,1768387844278,-3000.0,0.00016012,2]
[401853610,1768387844295,-3000.0,0.00016012,2]
[401853612,1768387844309,-3000.0,0.00016012,2]
[401853615,1768387844323,-1916.13825137,0.00016012,2]
[401853617,1768387844339,-1000.86610485,0.00016039,2]
[401853620,1768387844354,-1600.0,0.00016164,2]
[401853622,1768387844368,-1613.0,0.00016281,2]
[401853624,1768387844383,-1800.0,0.00016412,2]
[401853625,1768387844398,-500.0,0.00016438,2]
[401853626,1768387844415,-500.0,0.00016438,2]
[401853627,1768387844431,-500.0,0.00016438,2]
[401853629,1768387844446,-367.29391014,0.00016438,2]
[401853632,1768387844461,-500.0,0.00016438,2]
[401853634,1768387844478,-500.0,0.00016438,2]
[401853637,1768387844495,-500.0,0.00016438,2]
[401853640,1768387844511,-595.30780858,0.00016438,2]
[401853642,1768387844526,-5000.0,0.00016438,2]
[401853644,1768387844540,-6517.0,0.00016438,2]
[401853647,1768387844555,-200.0,0.00016438,2]
[401853650,1768387844570,-164.26686219,0.00016438,2]
[401853652,1768387844585,-2044.67516775,0.00016438,2]
[401853655,1768387844602,-3000.0,0.00016438,2]
[401853657,1768387844616,-819.68437302,0.00016438,2]
[401853660,1768387844631,-3000.0,0.00016438,2]
[401853663,1768387844647,-3000.0,0.00016438,2]
[401853665,1768387844662,-3000.0,0.00016438,2]
[401853668,1768387844677,-260.29560408,0.00016438,2]
[401853671,1768387844692,-200.0,0.00016473,2]
[401853673,1768387844708,-3500.0,0.0001656,2]
[401853676,1768387844723,-3500.0,0.0001656,2]
[401853679,1768387844739,-3500.0,0.0001656,2]
[401853681,1768387844756,-3500.0,0.0001656,2]
[401853684,1768387844771,-3500.0,0.0001656,2]
[401853686,1768387844784,-3500.0,0.0001656,2]
[401853689,1768387844799,-3500.0,0.0001656,2]
[401853691,1768387844814,-3500.0,0.0001656,2]
[401853696,1768387844849,-944.7,0.00016577,2]
[401853700,1768387844875,-1000.0,0.00016784,2]
[401853703,1768387844898,-492.0,0.00016784,2]
[401853706,1768387844916,-2100.0,0.0001696,2]
[401853709,1768387844935,-270.0,0.00016986,2]
[401853712,1768387844952,-3087.94374426,0.00016986,2]
[401853715,1768387844969,-3500.0,0.00016986,2]
[401853717,1768387844986,-3500.0,0.00016986,2]
[401853720,1768387845004,-3500.0,0.00016986,2]
[401853723,1768387845020,-1500.89259863,0.00017,2]
[401853725,1768387845034,-4000.0,0.00017108,2]
[401853728,1768387845052,-331.1504639,0.00017108,2]
[401853730,1768387845068,-4000.0,0.00017108,2]
[401853733,1768387845084,-1892.75982988,0.00017108,2]
[401853736,1768387845100,-4000.0,0.00017108,2]
[401853738,1768387845115,-4000.0,0.00017108,2]
[401853740,1768387845130,-4000.0,0.00017108,2]
[401853742,1768387845141,-4000.0,0.00017108,2]
[401853745,1768387845152,-160.0,0.00017147,2]
[401853746,1768387845161,-1041.66666667,0.00017147,2]
[401853749,1768387845171,-2400.0,0.0001726,2]
[401853767,1768387845387,-5000.0,0.00017412,2]
[401853768,1768387845404,-2400.0,0.00017508,2]
[401853769,1768387845414,-174.48080933,0.00017534,2]
[401853770,1768387845424,-400.0,0.00017534,2]
[401853771,1768387845433,-4000.0,0.00017534,2]
[401853772,1768387845443,-4000.0,0.00017534,2]
[401853773,1768387845453,-4000.0,0.00017534,2]
[401853774,1768387845463,-4500.0,0.00017656,2]
[401853775,1768387845473,-4500.0,0.00017656,2]
[401853776,1768387845483,-1199.34641428,0.00017656,2]
[401853777,1768387845492,-4500.0,0.00017656,2]
[401853778,1768387845502,-4500.0,0.00017656,2]
[401853779,1768387845512,-4500.0,0.00017656,2]
[401853780,1768387845523,-30682.8042698,0.000178,3]
[401853781,1768387845532,-400.30202268,0.00017842,2]
[401853782,1768387845541,-2258.0,0.00017907,2]
[401853783,1768387845552,-944.7,0.00018024,2]
[401853784,1768387845561,-1117.85045476,0.00018039,2]
[401853785,1768387845571,-2700.0,0.00018056,2]
[401853786,1768387845580,-4500.0,0.00018082,2]
[401853787,1768387845589,-4500.0,0.00018082,2]
[401853788,1768387845599,-4500.0,0.00018082,2]
[401853789,1768387845609,-917.48910491,0.00018204,2]
[401853790,1768387845618,-5000.0,0.00018204,2]
[401853791,1768387845627,-5000.0,0.00018204,2]
[401853792,1768387845637,-5000.0,0.00018204,2]
[401853793,1768387845647,-5000.0,0.00018204,2]
[401853794,1768387845656,-163.33303318,0.00018339,2]
[401853795,1768387845665,-3200.0,0.00018356,2]
[401853796,1768387845674,-1000.0,0.00018463,2]
[401853797,1768387845684,-791.0,0.00018463,2]
[401853798,1768387845693,-3000.0,0.00018604,2]
[401853799,1768387845702,-600.0,0.0001863,2]
[401853800,1768387845711,-5000.0,0.0001863,2]
[401853801,1768387845721,-5000.0,0.0001863,2]
[401853802,1768387845731,-5000.0,0.0001863,2]
[401853803,1768387845740,-19805.93410511,0.00018653,2]
[401853804,1768387845754,-2015.44184525,0.00018752,2]
[401853805,1768387845763,-5500.0,0.00018752,2]
[401853806,1768387845773,-5500.0,0.00018752,2]
[401853807,1768387845783,-5500.0,0.00018752,2]
[401853808,1768387845793,-5000.0,0.00018863,2]
[401853809,1768387845803,-303.10001603,0.000189,2]
[401853810,1768387845812,-303.10001603,0.000189,2]
[401853811,1768387845823,-303.10001603,0.00019089,2]
[401853813,1768387845832,-303.10001603,0.00019089,2]
[401853815,1768387845841,-330.42,0.000191,7]
[401853817,1768387845850,-3300.0,0.00019152,2]
[401853819,1768387845860,-1521.41,0.00019178,2]
[401853821,1768387845870,-2535.6762,0.00019178,2]
[401853823,1768387845879,-200.0,0.00019178,2]
[401853825,1768387845889,-2507.5,0.00019178,2]
[401853827,1768387845900,-12277.643638,0.00019178,7]
[401853829,1768387845910,-227.08932885,0.00019178,2]
[401853831,1768387845921,-5500.0,0.00019178,2]
[401853834,1768387845935,-5500.0,0.00019178,2]
[401853836,1768387845946,-5500.0,0.00019178,2]
[401853838,1768387845955,-316.42,0.000192,2]
[401853840,1768387845965,-316.46,0.000192,2]
[401853842,1768387845974,-5150.59,0.000192,2]
[401853844,1768387845985,-167.77,0.000192,2]
[401853846,1768387845995,-40340.44,0.000192,2]
[401853849,1768387846004,-111546.655266,0.000192,7]
[401853851,1768387846013,-303.10001603,0.00019278,2]
[401853853,1768387846023,-303.10001603,0.00019278,2]
[401853855,1768387846033,-1540.44472477,0.000193,2]
[401853858,1768387846043,-6000.0,0.000193,2]
[401853860,1768387846054,-6000.0,0.000193,2]
[401853862,1768387846063,-151.0,0.00019452,2]
[401853864,1768387846073,-202.375128,0.00019452,2]
[401853866,1768387846083,-151.0,0.00019452,2]
[401853868,1768387846093,-151.0,0.00019452,2]
[401853870,1768387846104,-151.0,0.00019452,2]
[401853872,1768387846114,-151.0,0.00019452,2]
[401853874,1768387846124,-45226.917544,0.00019452,7]
[401853876,1768387846134,-307.61092211,0.00019452,2]
[401853878,1768387846143,-303.10001603,0.00019467,2]
[401853880,1768387846152,-303.10001603,0.00019467,2]
[401853882,1768387846162,-944.7,0.00019471,2]
[401853884,1768387846171,-728.0,0.000196,2]
[401853886,1768387846181,-2427.285628,0.00019656,7]
[401853888,1768387846191,-303.10001603,0.00019656,2]
[401853890,1768387846201,-303.10001603,0.00019656,2]
[401853892,1768387846210,-3162.0,0.00019696,2]
[401853894,1768387846220,-6068.214071,0.000197,7]
[401853896,1768387846231,-756.20051056,0.000197,2]
[401853898,1768387846240,-800.0,0.00019726,2]
[401853900,1768387846250,-250.0,0.00019726,2]
[401853903,1768387846260,-6000.0,0.00019726,2]
[401853905,1768387846270,-6000.0,0.00019726,2]
[401853907,1768387846280,-6000.0,0.00019726,2]
[401853909,1768387846289,-250.0,0.00019726,2]
[401853911,1768387846300,-180.09004502,0.0001973,2]
[401853913,1768387846309,-454.65002405,0.00019845,4]
[401853915,1768387846319,-454.65002405,0.00019845,4]
[401853917,1768387846329,-6500.0,0.00019848,2]
[401853919,1768387846338,-6500.0,0.00019848,2]
[401853921,1768387846348,-2000.0,0.0001999,7]
[401853923,1768387846358,-5000.0,0.0002,2]
[401853925,1768387846368,-9661.0,0.0002,2]
[401853927,1768387846377,-500.0,0.0002,2]
[401853929,1768387846387,-500.0,0.0002,2]
[401853931,1768387846397,-151.55000802,0.0002,2]
[401853933,1768387846407,-69841.745089,0.0002,7]
[401853935,1768387846417,-300.0,0.0002,2]
[401853937,1768387846426,-30682.78,0.0002,3]
[401853939,1768387846436,-454.65002405,0.00020034,4]
[401853941,1768387846445,-454.65002405,0.00020034,4]
[401853943,1768387846459,-1234.83480468,0.00020039,2]
[401853945,1768387846469,-180.3,0.00020103,2]
[401853947,1768387846479,-15170.535177,0.00020115,7]
[401853949,1768387846488,-666.883218,0.00020139,2]
[401853951,1768387846499,-666.883218,0.00020139,2]
[401853953,1768387846509,-151.0,0.00020139,2]
[401853955,1768387846519,-666.883218,0.00020139,2]
[401853957,1768387846529,-666.883218,0.00020139,2]
[401853959,1768387846539,-851.20198,0.00020139,2]
[401853961,1768387846551,-851.20198,0.00020139,2]
[401853963,1768387846561,-851.20198,0.00020139,2]
[401853965,1768387846571,-851.20198,0.00020139,2]
[401853967,1768387846580,-455.59513863,0.00020223,4]
[401853969,1768387846591,-454.65002405,0.00020223,4]
[401853971,1768387846602,-200.91058964,0.00020274,2]
[401853973,1768387846612,-6500.0,0.00020274,2]
[401853975,1768387846623,-5402.72600724,0.00020274,2]
[401853977,1768387846633,-4946.58201638,0.00020274,2]
[401853979,1768387846643,-350.0,0.00020274,2]
[401853981,1768387846653,-1000.0,0.00020309,2]
[401853983,1768387846664,-1000.0,0.00020309,2]
[401853986,1768387846675,-7000.0,0.00020396,2]
[401853988,1768387846686,-2573.24025849,0.00020396,2]
[401853990,1768387846697,-454.65002405,0.00020412,4]
[401853992,1768387846707,-316.42,0.000205,2]
[401853994,1768387846717,-316.46,0.000205,2]
[401853996,1768387846727,-5150.59,0.000205,2]
[401853998,1768387846738,-167.77,0.000205,2]
[401854000,1768387846752,-40340.44,0.000205,2]
[401854002,1768387846762,-2028.396733,0.00020548,2]
[401854004,1768387846771,-37926.337941,0.00020601,7]
[401854006,1768387846783,-454.65002405,0.00020601,4]
[401854008,1768387846794,-1000.0,0.00020822,2]
[401854010,1768387846805,-7000.0,0.00020822,2]
[401854012,1768387846819,-450.0,0.00020822,2]
[401854014,1768387846831,-194.0,0.00020855,2]
[401854016,1768387846842,-151.0,0.000209,4]
[401854018,1768387846854,-151.0,0.000209,3]
[401854020,1768387846865,-944.7,0.00020918,2]
[401854022,1768387846876,-194.0,0.00020939,2]
[401854024,1768387846887,-2683.87260271,0.00020944,2]
[401854026,1768387846898,-194.0,0.00020973,2]
[401854028,1768387846908,-2000.0,0.00020991,7]
[401854030,1768387846919,-500.0,0.00021,7]
[401854032,1768387846931,-150.23957802,0.0002107,2]
[401854034,1768387846942,-194.0,0.00021075,2]
[401854036,1768387846953,-160.35823449,0.0002108,2]
[401854038,1768387846963,-194.0,0.00021249,2]
[401854041,1768387846976,-194.0,0.0002131,2]
[401854043,1768387846987,-194.0,0.00021324,2]
[401854045,1768387846997,-7500.0,0.0002137,2]
[401854047,1768387847008,-550.0,0.0002137,2]
[401854049,1768387847019,-194.0,0.00021394,2]
[401854051,1768387847030,-19805.93410511,0.00021498,2]
[401854053,1768387847040,-194.0,0.0002154,2]
[401854055,1768387847050,-194.0,0.00021561,2]
[401854056,1768387847061,-194.0,0.00021588,2]
[401854058,1768387847072,-4427.0,0.00021663,2]
[401854060,1768387847084,-194.0,0.00021823,2]
[401854063,1768387847095,-194.0,0.00021897,2]
[401854065,1768387847106,-151.0,0.00021918,2]
[401854067,1768387847117,-151.0,0.00021918,2]
[401854069,1768387847128,-151.0,0.00021918,2]
[401854071,1768387847138,-151.0,0.00021918,2]
[401854073,1768387847148,-160.471335,0.00021918,2]
[401854075,1768387847158,-151.0,0.00021918,2]
[401854077,1768387847168,-169.388304,0.00021918,2]
[401854079,1768387847180,-151.0,0.00021918,2]
[401854081,1768387847190,-151.0,0.00021918,2]
[401854083,1768387847201,-151.0,0.00021918,2]
[401854085,1768387847212,-879.438014,0.00021918,2]
[401854087,1768387847222,-879.438014,0.00021918,2]
[401854089,1768387847232,-879.438014,0.00021918,2]
[401854090,1768387847242,-879.438014,0.00021918,2]
[401854093,1768387847254,-181.655666,0.00021918,2]
[401854094,1768387847264,-216.477356,0.00021918,2]
[401854097,1768387847276,-216.477356,0.00021918,2]
[401854099,1768387847286,-382.165336,0.00021918,2]
[401854101,1768387847296,-216.477356,0.00021918,2]
[401854103,1768387847307,-382.165336,0.00021918,2]
[401854104,1768387847317,-216.477356,0.00021918,2]
[401854107,1768387847329,-382.165336,0.00021918,2]
[401854109,1768387847339,-382.165336,0.00021918,2]
[401854111,1768387847349,-1838.09205,0.00021918,2]
[401854113,1768387847360,-1838.09205,0.00021918,2]
[401854115,1768387847370,-151.0,0.00021918,2]
[401854117,1768387847381,-1838.09205,0.00021918,2]
[401854119,1768387847392,-1838.09205,0.00021918,2]
[401854121,1768387847403,-151.0,0.00021918,2]
[401854123,1768387847414,-151.0,0.00021918,2]
[401854124,1768387847425,-151.0,0.00021918,2]
[401854127,1768387847436,-153.839404,0.00021918,2]
[401854129,1768387847448,-151.0,0.00021918,2]
[401854131,1768387847459,-151.0,0.00021918,2]
[401854132,1768387847468,-671.695781,0.00021918,2]
[401854135,1768387847479,-272.028283,0.00021918,2]
[401854136,1768387847491,-671.695781,0.00021918,2]
[401854139,1768387847502,-671.695781,0.00021918,2]
[401854140,1768387847513,-275.55471384,0.00021918,2]
[401854143,1768387847525,-671.695781,0.00021918,2]
[401854145,1768387847537,-151.0,0.00021918,2]
[401854147,1768387847547,-151.0,0.00021918,2]
[401854149,1768387847559,-151.0,0.00021918,2]
[401854151,1768387847570,-230.012904,0.00021918,2]
[401854153,1768387847590,-151.0,0.00021918,2]
[401854156,1768387847604,-151.0,0.00021918,2]
[401854157,1768387847615,-151.0,0.00021918,2]
[401854160,1768387847627,-174.038823,0.00021918,2]
[401854162,1768387847640,-174.038823,0.00021918,2]
[401854164,1768387847652,-174.038823,0.00021918,2]
[401854166,1768387847664,-174.038823,0.00021918,2]
[401854168,1768387847676,-406.316369,0.00021918,2]
[401854170,1768387847692,-406.316369,0.00021918,2]
[401854172,1768387847704,-406.316369,0.00021918,2]
[401854174,1768387847717,-151.3487,0.00021918,2]
[401854176,1768387847728,-406.316369,0.00021918,2]
[401854178,1768387847741,-151.0,0.00021918,2]
[401854180,1768387847755,-216.013567,0.00021918,2]
[401854182,1768387847767,-151.3487,0.00021918,2]
[401854184,1768387847779,-216.013567,0.00021918,2]
[401854186,1768387847791,-151.3487,0.00021918,2]
[401854188,1768387847803,-216.013567,0.00021918,2]
[401854190,1768387847815,-151.3487,0.00021918,2]
[401854192,1768387847827,-151.0,0.00021918,2]
[401854194,1768387847838,-216.013567,0.00021918,2]
[401854196,1768387847851,-170.441606,0.00021918,2]
[401854198,1768387847863,-151.0,0.00021918,2]
[401854200,1768387847874,-171.320259,0.00021918,2]
[401854202,1768387847885,-151.0,0.00021918,2]
[401854204,1768387847897,-162.301205,0.00021918,2]
[401854206,1768387847908,-151.0,0.00021918,2]
[401854208,1768387847919,-151.0,0.00021918,2]
[401854225,1768387848098,-244.488138,0.00021918,2]
[401854227,1768387848110,-151.0,0.00021918,2]
[401854229,1768387848120,-171.876779,0.00021918,2]
[401854231,1768387848130,-244.488138,0.00021918,2]
[401854233,1768387848140,-244.488138,0.00021918,2]
[401854235,1768387848151,-151.0,0.00021918,2]
[401854237,1768387848161,-244.488138,0.00021918,2]
[401854239,1768387848173,-151.0,0.00021918,2]
[401854241,1768387848183,-151.0,0.00021918,2]
[401854243,1768387848194,-151.0,0.00021918,2]
[401854245,1768387848204,-151.0,0.00021918,2]
[401854247,1768387848215,-240.755518,0.00021918,2]
[401854249,1768387848226,-237.361203,0.00021918,2]
[401854251,1768387848235,-237.361203,0.00021918,2]
[401854253,1768387848245,-237.361203,0.00021918,2]
[401854255,1768387848256,-237.361203,0.00021918,2]
[401854257,1768387848265,-151.0,0.00021918,2]
[401854259,1768387848275,-151.0,0.00021918,2]
[401854261,1768387848284,-151.0,0.00021918,2]
[401854262,1768387848295,-151.0,0.00021918,2]
[401854264,1768387848304,-151.0,0.00021918,2]
[401854266,1768387848315,-151.0,0.00021918,2]
[401854268,1768387848324,-1200.0,0.00021918,2]
[401854270,1768387848336,-8000.0,0.00021918,2]
[401854272,1768387848347,-650.0,0.00021918,2]
[401854274,1768387848357,-2000.0,0.00021991,7]
[401854276,1768387848367,-2222.24,0.00022,7]
[401854278,1768387848376,-194.0,0.00022,2]
[401854280,1768387848386,-1351.8191546,0.00022039,2]
[401854282,1768387848395,-5115.684849,0.00022055,30]
[401854284,1768387848405,-46477.773027,0.0002208,30]
[401854286,1768387848415,-194.0,0.00022105,2]
[401854288,1768387848424,-194.0,0.00022117,2]
[401854290,1768387848434,-180.3,0.00022155,2]
[401854292,1768387848444,-194.0,0.00022279,2]
[401854294,1768387848454,-316.42,0.000223,7]
[401854296,1768387848464,-316.46,0.000223,7]
[401854298,1768387848474,-5150.59,0.000223,14]
[401854300,1768387848483,-167.77,0.000223,7]
[401854302,1768387848494,-1000.0,0.0002234,10]
[401854304,1768387848504,-1000.0,0.0002234,10]
[401854306,1768387848515,-579.0,0.0002234,10]
[401854308,1768387848526,-6872.97859589,0.0002234,10]
[401854310,1768387848536,-194.0,0.00022351,2]
[401854312,1768387848545,-944.7,0.00022365,2]
[401854314,1768387848555,-40340.44,0.000224,2]
[401854316,1768387848564,-194.0,0.00022443,2]
[401854318,1768387848574,-300.0,0.00022466,2]
[401854320,1768387848583,-200.0,0.00022466,2]
[401854322,1768387848593,-1864.52541442,0.00022466,2]
[401854324,1768387848602,-750.0,0.00022466,2]
[401854326,1768387848613,-194.0,0.00022569,2]
[401854328,1768387848622,-194.0,0.00022697,2]
[401854330,1768387848632,-194.0,0.00022729,2]
[401854332,1768387848642,-194.0,0.00022782,2]
[401854334,1768387848652,-194.0,0.00022881,2]
[401854336,1768387848662,-194.0,0.00022882,2]
[401854338,1768387848671,-2000.0,0.00022992,7]
[401854340,1768387848681,-1041.66666667,0.00023,3]
[401854342,1768387848690,-450.0,0.00023014,2]
[401854344,1768387848699,-1400.0,0.00023014,2]
[401854346,1768387848708,-250.0,0.00023014,2]
[401854348,1768387848718,-850.0,0.00023014,2]
[401854349,1768387848728,-2222.24,0.000231,7]
[401854351,1768387848737,-330.42,0.000231,7]
[401854353,1768387848749,-522.88356834,0.00023139,2]
[401854355,1768387848759,-182.95072115,0.0002315,2]
[401854357,1768387848769,-151.0,0.0002316,2]
[401854359,1768387848779,-151.0,0.0002316,2]
[401854361,1768387848789,-151.0,0.0002316,2]
[401854363,1768387848799,-151.0,0.0002316,2]
[401854365,1768387848808,-151.0,0.0002316,2]
[401854367,1768387848818,-151.0,0.0002316,2]
[401854369,1768387848829,-151.0,0.0002316,2]
[401854371,1768387848839,-500.0,0.00023185,2]
[401854373,1768387848848,-1321.2655534,0.00023212,2]
[401854375,1768387848858,-728.0,0.000233,3]
[401854377,1768387848868,-800.0,0.00023305,2]
[401854379,1768387848877,-1145.51309932,0.00023325,18]
[401854381,1768387848886,-293.85068442,0.00023434,2]
[401854383,1768387848896,-1700.0,0.00023482,2]
[401854385,1768387848906,-1700.0,0.00023512,2]
[401854386,1768387848915,-1000.0,0.00023557,2]
[401854388,1768387848925,-600.0,0.00023562,2]
[401854390,1768387848935,-210.92385342,0.00023562,2]
[401854392,1768387848944,-950.0,0.00023562,2]
[401854394,1768387848953,-316.42,0.000236,7]
[401854396,1768387848963,-316.46,0.000236,7]
[401854398,1768387848972,-5150.59,0.000236,14]
[401854400,1768387848982,-167.77,0.000236,7]
[401854402,1768387848992,-500.0,0.00023663,2]
[401854404,1768387849001,-1700.0,0.00023665,2]
[401854406,1768387849011,-1000.0,0.00023699,2]
[401854408,1768387849020,-800.0,0.00023704,2]
[401854410,1768387849030,-1700.0,0.0002374,2]
[401854412,1768387849039,-800.0,0.00023785,2]
[401854414,1768387849048,-1700.0,0.00023787,2]
[401854416,1768387849058,-40340.44,0.000238,2]
[401854418,1768387849067,-1000.0,0.00023811,2]
[401854420,1768387849077,-944.7,0.00023812,2]
[401854422,1768387849086,-3384.0,0.00023826,2]
[401854424,1768387849095,-1000.0,0.00023852,2]
[401854426,1768387849105,-800.0,0.00023918,2]
[401854428,1768387849114,-2000.0,0.00023992,7]
[401854430,1768387849123,-1041.66666667,0.00024,7]
[401854432,1768387849132,-1041.66666667,0.00024,10]
[401854434,1768387849142,-500.0,0.00024036,2]
[401854435,1768387849152,-1468.80350452,0.00024039,2]
[401854437,1768387849161,-1000.0,0.00024044,2]
[401854439,1768387849171,-800.0,0.00024055,2]
[401854441,1768387849185,-1700.0,0.0002409,2]
[401854443,1768387849195,-750.0,0.0002411,2]
[401854445,1768387849204,-1601.4141805,0.0002411,2]
[401854447,1768387849214,-1050.0,0.0002411,2]
[401854449,1768387849223,-1700.0,0.00024112,2]
[401854451,1768387849232,-2222.24,0.000242,7]
[401854453,1768387849242,-1000.0,0.00024207,2]
[401854455,1768387849251,-800.0,0.00024233,2]
[401854457,1768387849260,-1700.0,0.00024309,2]
[401854459,1768387849269,-1145.51309932,0.0002431,19]
[401854461,1768387849279,-800.0,0.00024318,2]
[401854463,1768387849288,-1700.0,0.00024331,2]
[401854465,1768387849297,-19805.93410511,0.00024344,2]
[401854467,1768387849307,-1000.0,0.00024354,2]
[401854469,1768387849316,-1000.0,0.00024362,2]
[401854471,1768387849324,-1000.0,0.00024391,2]
[401854472,1768387849333,-150.25,0.00024438,2]
[401854474,1768387849343,-167.12486556,0.00024467,5]
[401854475,1768387849352,-157.32070626,0.00024467,5]
[401854476,1768387849361,-1000.0,0.00024574,10]
[401854477,1768387849372,-1000.0,0.00024574,10]
[401854478,1768387849382,-1000.0,0.00024574,10]
[401854479,1768387849391,-1000.0,0.00024614,2]
[401854480,1768387849399,-500.0,0.00024638,2]
[401854481,1768387849408,-900.0,0.00024658,2]
[401854482,1768387849417,-1150.0,0.00024658,2]
[401854483,1768387849426,-200.0,0.00024658,2]
[401854484,1768387849435,-380.0,0.00024658,2]
[401854485,1768387849444,-800.0,0.00024688,2]
[401854486,1768387849453,-1082.98429516,0.00024698,2]
[401854487,1768387849462,-500.0,0.00024773,2]
[401854488,1768387849471,-500.0,0.00024791,2]
[401854489,1768387849480,-1000.0,0.00024836,2]
[401854490,1768387849489,-1000.0,0.0002489,2]
[401854491,1768387849498,-1000.0,0.00024897,2]
[401854492,1768387849506,-316.42,0.000249,7]
[401854493,1768387849515,-316.46,0.000249,7]
[401854494,1768387849524,-5150.59,0.000249,14]
[401854495,1768387849533,-167.77,0.000249,7]
[401854496,1768387849542,-165.615125,0.000249,7]
[401854497,1768387849550,-151.0,0.000249,7]
[401854498,1768387849560,-151.0,0.000249,7]
[401854499,1768387849569,-151.0,0.000249,7]
[401854500,1768387849579,-151.0,0.000249,7]
[401854502,1768387849588,-176.527375,0.000249,7]
[401854504,1768387849597,-151.0,0.000249,7]
[401854506,1768387849607,-151.0,0.000249,7]
[401854508,1768387849617,-151.0,0.000249,7]
[401854510,1768387849626,-151.0,0.000249,7]
[401854512,1768387849635,-163.463878,0.000249,7]
[401854514,1768387849645,-151.0,0.000249,7]
[401854516,1768387849654,-151.0,0.000249,7]
[401854518,1768387849664,-151.0,0.000249,7]
[401854520,1768387849673,-151.0,0.000249,7]
[401854522,1768387849682,-151.0,0.000249,7]
[401854524,1768387849692,-151.0,0.000249,7]
[401854526,1768387849701,-151.0,0.000249,7]
[401854528,1768387849711,-160.546344,0.000249,7]
[401854530,1768387849722,-151.0,0.000249,7]
[401854532,1768387849731,-169.444097,0.000249,7]
[401854534,1768387849741,-151.0,0.000249,7]
[401854536,1768387849755,-151.0,0.000249,7]
[401854538,1768387849764,-151.0,0.000249,7]
[401854540,1768387849773,-151.0,0.000249,7]
[401854542,1768387849782,-151.0,0.000249,7]
[401854543,1768387849793,-151.0,0.000249,7]